Cogmind - Beta 12 X4 @@@ ROGUE MODE // 2023.01.07 @ 16:37:54 Player: LU-1G1 Result: Destroyed by X-62 Marksman with Pulse Rifle Performance ------------- Evolutions (4) 2000 Regions Visited (12) 2400 Robots Destroyed (145) 725 Value Destroyed (4311) 4311 Prototype IDs (21) 420 Alien Tech Used (0) 0 Bonus (191) 191 TOTAL SCORE: 10047 Bonus ------- Follower Combat Kills 333 Met Data Miner 300 Friendly Fire -442 Cogmind --------- Core Integrity 0/850 Matter 153/300 Energy 100/100 System Corruption 11% Temperature Cool (9) Movement Core (1600) Ox31 Location -6/Factory Parts ------- > --- POWER (2) -------- (None) > --- PROPULSION (4) --- (None) > --- UTILITY (7) ------ Huge Storage Unit Machine Analyzer Advanced Signal Interpreter Improved Targeting Computer Core Analyzer Hardened Medium Armor Plating Hardened Medium Armor Plating > --- WEAPON (2) ------- (None) > --- INVENTORY (25) --- Advanced Energy Well (500) Structural Scanner Experimental Sensor Array Advanced Terrain Scanner Weapon Cycler Hardened Medium Armor Plating Authchip [Propulsion] Authchip [Storage] Improved Spread Laser Improved Spread Laser Improved Spread Laser Improved EM Pulse Cannon Improved EM Pulse Cannon Improved Heavy Machine Gun Improved Heavy Machine Gun Improved Heavy Machine Gun Improved Heavy Machine Gun Grenade Launcher Peak State ------------ > --- POWER ------------ Heavy Ion Engine Improved Deuterium Engine > --- PROPULSION ------- Light Treads Light Treads Light Treads Armored Treads > --- UTILITY ---------- Huge Storage Unit Machine Analyzer Experimental Sensor Array Advanced Signal Interpreter Improved Targeting Computer Improved Heavy Armor Plating > --- WEAPON ----------- Enhanced Autogun Chainsword > --- INVENTORY -------- Advanced Energy Well Structural Scanner Core Analyzer Weapon Cycler Light Armor Plating Light Armor Plating Hardened Medium Armor Plating Improved Medium Armor Plating Layered Medium Armor Plating Hardlight Generator Authchip [Propulsion] Authchip [Storage] High-powered Tractor Beam Improved EM Pulse Cannon Improved EM Pulse Cannon Improved Assault Rifle Improved Assault Rifle Improved Heavy Machine Gun Improved Heavy Machine Gun Improved Heavy Machine Gun Improved Heavy Machine Gun Improved Heavy Machine Gun Grenade Launcher Grenade Launcher [Rating: 60] Favorites ----------- Power Improved Deuterium Engine Engine Improved Deuterium Engine Power Core Micro Nuclear Core Propulsion Light Treads Treads Light Treads Leg Aluminum Leg Wheel Compact Wheel Utility Huge Storage Unit Device Experimental Sensor Array Storage Huge Storage Unit Processor Improved Targeting Computer Hackware Hacking Suite Protection Hardened Medium Armor Plating Weapon Minigun Energy Gun Particle Gun Energy Cannon Improved EM Pulse Cannon Ballistic Gun Minigun Ballistic Cannon Heavy Assault Cannon Launcher Grenade Launcher Slashing Weapon Chainsword Build | -11 -10 -10 -10 -9 -8 -8 -7 -7 -7 -7 -6 -6 ------- Run | Scr Mat Min Exi Min Mat Sto Fac Low Low Dat Pro Fac Slots Evolved 8 | . . . . . 4 . 2 . . . . 2 Power 1 | . . . . . . . . . . . . 1 Propulsion 2 | . . . . . 2 . . . . . . . Utility 5 | . . . . . 2 . 2 . . . . 1 Weapon . | . . . . . . . . . . . . . Parts Attached 173 | 7 15 6 2 3 36 22 6 4 3 1 23 45 Power 12 | 1 3 1 . . 3 1 1 . . . . 2 Engine 11 | 1 3 1 . . 3 1 1 . . . . 1 Core 1 | . . . . . . . . . . . . 1 Reactor . | . . . . . . . . . . . . . Propulsion 31 | 2 4 2 . . 9 4 1 . . . 4 5 Treads 22 | 2 2 2 . . 6 4 1 . . . 4 1 Leg 1 | . 1 . . . . . . . . . . . Wheel 8 | . 1 . . . 3 . . . . . . 4 Hover . | . . . . . . . . . . . . . Flight . | . . . . . . . . . . . . . Utility 68 | 2 2 2 . . 15 4 4 2 3 1 14 19 Device 34 | 1 1 1 . . 5 1 2 2 3 1 11 6 Storage 4 | 1 1 . . . . 1 . . . . 1 . Processor 7 | . . . . . 1 1 2 . . . 1 2 Hackware 3 | . . . . . 3 . . . . . . . Protection 20 | . . 1 . . 6 1 . . . . 1 11 Artifact . | . . . . . . . . . . . . . Weapon 62 | 2 6 1 2 3 9 13 . 2 . . 5 19 Energy Gun 6 | . 5 . . . . . . . . . . 1 Energy Cannon 1 | . . . . . . . . . . . . 1 Ballistic Gun 33 | 2 . 1 1 2 6 8 . 1 . . 3 9 Ballistic Cannon 4 | . . . . . 2 2 . . . . . . Launcher 12 | . 1 . 1 1 1 3 . 1 . . 2 2 Special Weapon . | . . . . . . . . . . . . . Impact Weapon . | . . . . . . . . . . . . . Slashing Weapon 6 | . . . . . . . . . . . . 6 Piercing Weapon . | . . . . . . . . . . . . . Special Melee Weapon . | . . . . . . . . . . . . . Unidentified Prototypes 8 | . . 1 . . 1 3 . . . . 2 1 Parts Lost 50 | . 7 2 . 1 12 1 . . . . 2 25 Power 5 | . 1 . . . 2 . . . . . . 2 Propulsion 16 | . 1 2 . . 4 . . . . . 2 7 Utility 18 | . 2 . . . 4 1 . . . . . 11 Weapon 11 | . 3 . . 1 2 . . . . . . 5 Highest Loss Streak 12 | . 2 2 . 1 5 1 . . . . 2 12 To Critical Strikes . | . . . . . . . . . . . . . Average Slot Usage (%) 95 | . 96 93 71 99 95 97 100 100 100 100 93 86 Engine 10 | . 13 14 14 14 9 9 7 7 7 7 7 8 Treads 24 | . 22 14 14 14 23 35 30 30 30 30 30 15 Wheel 5 | . 4 14 14 14 12 . . . . . . 5 Device 7 | . 10 . . . 9 9 7 7 7 7 6 4 Storage 9 | . 14 14 14 14 9 9 7 7 7 7 7 6 Processor 9 | . . . . . 4 9 22 23 23 23 16 22 Protection 6 | . . 7 14 14 9 8 7 7 7 7 7 7 Energy Gun 5 | . 22 13 . . . . . . . . . . Ballistic Gun 10 | . 4 . . 18 11 13 15 15 15 15 13 8 Launcher 1 | . 1 14 . 9 . . . . . . 1 1 Naked Turns . | . . . . . . . . . . . . . Heaviest Build 124 | 13 92 94 93 93 109 110 109 109 105 109 116 124 Greatest Support 80 | 40 40 16 16 16 80 80 80 80 80 80 80 80 Greatest Overweight (x) 31 | . 5 5 5 5 5 1 1 1 1 1 1 31 Average Overweight (x) 2 | . 3 5 5 5 2 1 1 1 1 1 1 2 Largest Inventory Capacity 25 | 8 25 25 25 25 25 25 25 25 25 25 25 25 Average Capacity 24 | 7 23 25 25 25 25 25 25 25 25 25 25 25 Most Carried 25 | 6 18 25 24 23 25 25 25 25 25 25 25 24 Average Carried 20 | 5 12 21 23 21 23 24 22 24 25 25 24 20 Final Capacity 25 | 8 25 25 25 25 25 25 25 25 25 25 25 25 Final Carried 25 | 6 16 22 22 21 25 23 25 25 25 25 25 18 Class Distribution -------------------- 40% | Mutant 34% | Scavenger-Mutant 19% | Scavenger-Skirmisher Dominant Class ---------------- Mutant | -10/Materials Mutant | -10/Mines Mutant | -10/Exiles Mutant | -9/Mines Scavenger-Mutant | -8/Materials Scavenger-Mutant | -8/Storage Scavenger-Skirmisher | -7/Factory Scavenger-Mutant | -7/Lower Caves Scavenger-Skirmisher | -7/Lower Caves Scavenger-Skirmisher | -7/Data Miner Scavenger-Mutant | -6/Proximity Caves Mutant | -6/Factory Resources | -11 -10 -10 -10 -9 -8 -8 -7 -7 -7 -7 -6 -6 ----------- Run | Scr Mat Min Exi Min Mat Sto Fac Low Low Dat Pro Fac Matter Collected 4169 | 286 230 129 22 35 1300 826 64 142 88 . 403 644 Remotely 421 | . . . . . . . . . . . . 421 Salvage Created 5625 | 156 1114 178 . 78 1648 1038 38 97 74 . 308 896 Parts 322 | 12 75 17 . 3 83 55 1 5 3 . 9 59 Haulers Intercepted 7 | . 2 . . . 3 2 . . . . . . Recyclers Shooed 11 | . 3 1 . . 4 1 . . . . . 2 Parts Field Recycled . | . . . . . . . . . . . . . Retrieved Matter . | . . . . . . . . . . . . . Parts Self-Destructed 25 | . . . . . . . . 10 12 . 3 . Prevented . | . . . . . . . . . . . . . Kills | -11 -10 -10 -10 -9 -8 -8 -7 -7 -7 -7 -6 -6 ------- Run | Scr Mat Min Exi Min Mat Sto Fac Low Low Dat Pro Fac Combat Hostiles Destroyed 96 | . 20 6 . 3 21 20 . 2 1 . 6 17 Melee 1 | . . . . . . . . . . . . 1 Guns 72 | . 19 1 . 2 21 9 . 1 1 . 4 14 Cannons 3 | . . . . . . 3 . . . . . . AOE 20 | . 1 5 . 1 . 8 . 1 . . 2 2 Classes Destroyed 14 | 2 5 1 . 1 3 1 . . . . 1 . Worker 6 | . 2 . . . . 2 . . . . . 2 Builder 8 | . 2 4 . . . 2 . . . . . . Tunneler 4 | 3 . 1 . . . . . . . . . . Hauler 7 | . 2 . . . 3 2 . . . . . . Recycler 13 | 1 1 1 . . 5 2 . . . . . 3 Mechanic 3 | . . . . . 1 1 . . . . . 1 Watcher 7 | . 2 . . . 2 1 1 . . . . 1 Swarmer 19 | . . 6 . . . 3 . . . . . 10 Grunt 55 | . 20 . . 2 14 12 . 1 . . 3 3 Duelist 2 | . . . . 1 . 1 . . . . . . Protector 1 | . . . . . . 1 . . . . . . Sentry 8 | . . . . . 5 3 . . . . . . Hunter 6 | . . . . . 2 . . 1 1 . . 2 Programmer 3 | . . . . . . . . . . . 1 2 Enhanced Grunt 1 | . . . . . . . . . . . 1 . Decomposer 1 | . . . . . . . . . 1 . . . Thug 2 | . . . . . . . . . . . 2 . Best Kill Streak 15 | 2 4 4 . 3 6 9 1 1 1 . 3 15 Combat Bots Only 12 | . 3 3 . 3 3 6 . 1 1 . 3 12 Max Kills in Single Turn 4 | 1 1 3 . 1 1 4 1 1 1 . 1 2 Gunslinging . | . . . . . . . . . . . . . Exploded 3 | . 1 3 . 1 . 3 . 1 . . 1 1 Melee 1 | . . . . . . . . . . . . 1 Uniques/NPCs Destroyed . | . . . . . . . . . . . . . Combat | -11 -10 -10 -10 -9 -8 -8 -7 -7 -7 -7 -6 -6 -------- Run | Scr Mat Min Exi Min Mat Sto Fac Low Low Dat Pro Fac Damage Taken 8830 | . 1067 172 . 90 1281 648 . 142 57 . 569 4804 Core 1338 | . 130 45 . 33 177 66 . . . . 28 859 Absorbed by Shields 798 | . . . . . 198 240 . 44 20 . 84 212 Redirected to Shielding 19 | . . . . 8 11 . . . . . . . Regen/Repaired (Parts) 202 | . . . . . . 202 . . . . . . Core Remaining (%) 66 | 100 . . . 16 . 55 . . . . 96 . Volleys Fired 435 | 10 99 24 . 7 119 70 4 10 6 . 39 47 Largest 2 | 2 2 1 . 2 2 2 2 2 2 . 2 2 Hottest 115 | 40 115 65 . 50 60 60 50 50 50 . 50 69 Shots Fired 775 | 20 190 24 . 13 223 123 8 18 12 . 67 77 Gun 705 | 20 189 19 . 9 208 98 8 16 12 . 56 70 Cannon 30 | . . . . . 15 14 . . . . . 1 Launcher 40 | . 1 5 . 4 . 11 . 2 . . 11 6 Special . | . . . . . . . . . . . . . Kinetic 616 | 20 87 3 . 9 223 112 8 16 12 . 56 70 Thermal 118 | . 102 16 . . . . . . . . . . Explosive 40 | . 1 5 . 4 . 11 . 2 . . 11 6 Electromagnetic 1 | . . . . . . . . . . . . 1 Robot Hit Streak 18 | 6 14 5 . 8 12 18 16 5 7 . 10 15 Robot Miss Streak 6 | 2 6 4 . 1 5 5 2 3 1 . 4 2 Penetration Max . | . . . . . . . . . . . . . Secondary Targets 11 | . 1 . . . 4 1 . . . . 1 4 Max Gunslinging Chain 1 | . 1 . . . 1 1 . . . . 1 1 Shots Hit Robots 517 | 15 132 13 . 8 143 71 3 12 8 . 47 65 Core Hits 289 | 7 56 12 . 7 60 70 1 9 4 . 24 39 Critical Kills 3 | . 1 . . . . 1 . . . . . 1 Critical Parts Destroyed . | . . . . . . . . . . . . . Critical Strikes 12 | . 5 1 . . 3 2 . . . . . 1 Burn 5 | . 4 1 . . . . . . . . . . Destroy 3 | . 1 . . . . 1 . . . . . 1 Blast 4 | . . . . . 3 1 . . . . . . Melee Attacks 18 | . . . . . . . . . . . . 18 Impact . | . . . . . . . . . . . . . Slashing 18 | . . . . . . . . . . . . 18 Piercing . | . . . . . . . . . . . . . Sneak Attacks 2 | . . . . . . . . . . . . 2 Combat Hostiles . | . . . . . . . . . . . . . Follow-up Attacks . | . . . . . . . . . . . . . Damage Inflicted 11966 | 127 1570 572 . 254 2667 2745 50 339 108 . 1450 2084 Guns 7508 | 124 1514 193 . 56 2269 1233 50 134 108 . 834 993 Cannons 654 | . . . . . 380 274 . . . . . . Explosions 3259 | . . 346 . 198 . 1232 . 205 . . 616 662 Melee 403 | . . . . . . . . . . . . 403 Ramming 142 | 3 56 33 . . 18 6 . . . . . 26 Kinetic 7017 | 124 519 43 . 56 2649 1507 50 134 108 . 834 993 Thermal 1145 | . 995 150 . . . . . . . . . . Explosive 3259 | . . 346 . 198 . 1232 . 205 . . 616 662 Electromagnetic . | . . . . . . . . . . . . . Impact . | . . . . . . . . . . . . . Slashing 403 | . . . . . . . . . . . . 403 Piercing . | . . . . . . . . . . . . . Highest Corruption 11 | . 3 3 3 3 . . . . . . . 11 Average Corruption 3 | . 3 3 3 3 . . . . . . . 7 Corruption Purged . | . . . . . . . . . . . . . Corruption Blocked . | . . . . . . . . . . . . . Effects 32 | . 1 17 5 8 . . . . . . . 1 Message Errors 9 | . . 6 2 1 . . . . . . . . Matter Fused 10 | . 1 5 . 4 . . . . . . . . Heat Flow Errors 3 | . . 2 1 . . . . . . . . . Energy Discharges 5 | . . 2 2 1 . . . . . . . . Parts Rejected 1 | . . . . . . . . . . . . 1 Data Loss (minor) 2 | . . 1 . 1 . . . . . . . . Data Loss (major) 1 | . . 1 . . . . . . . . . . Misfires 1 | . . . . 1 . . . . . . . . Overload Shots . | . . . . . . . . . . . . . Overflow Damage 129 | . . 10 . . 45 21 . . . . 10 43 Projectiles 66 | . . . . . 45 21 . . . . . . Explosions 23 | . . 7 . . . . . . . . 10 6 Melee 40 | . . 3 . . . . . . . . . 37 Knockbacks 2 | . . . . . . 1 . . . . . 1 Impact 1 | . . . . . . . . . . . . 1 Kinetic 1 | . . . . . . 1 . . . . . . Secondary . | . . . . . . . . . . . . . Self-Inflicted Damage 117 | . 19 20 . 34 5 . . . . . 39 . Shots 3 | . . 1 . 1 . . . . . . 1 . Rammed 16 | 2 4 1 . . 3 1 . . . . . 5 Targets Rammed 17 | 2 4 1 . . 3 1 . . . . . 6 Kicked . | . . . . . . . . . . . . . Crushed 1 | . . . . . . . . . . . . 1 Highest Temperature 270 | . 270 259 244 4 86 64 8 18 18 . 60 50 Average Temperature 48 | . 86 80 130 2 17 17 4 8 7 . 15 24 Received Heat Transfer 1888 | . 561 . . 12 592 316 . 41 . . 174 192 Effects 1 | . 1 . . . . . . . . . . . Interference 1 | . 1 . . . . . . . . . . . Siege Activations . | . . . . . . . . . . . . . Robots Corrupted . | . . . . . . . . . . . . . Combat Hostiles . | . . . . . . . . . . . . . Parts Fried . | . . . . . . . . . . . . . Impact Corruptions 1 | . . 1 . . . . . . . . . . Robots Melted . | . . . . . . . . . . . . . Combat Hostiles . | . . . . . . . . . . . . . Parts Melted 6 | . 5 1 . . . . . . . . . . Heat Transferred 3223 | . 2816 407 . . . . . . . . . . Parts Sabotaged 3 | . . . . . . . . . . . . 3 Parts Stolen . | . . . . . . . . . . . . . Parts Stripped . | . . . . . . . . . . . . . Power Chain Reactions . | . . . . . . . . . . . . . Missiles Intercepted . | . . . . . . . . . . . . . Alert | -11 -10 -10 -10 -9 -8 -8 -7 -7 -7 -7 -6 -6 ------- Run | Scr Mat Min Exi Min Mat Sto Fac Low Low Dat Pro Fac Peak Influence 385 | 20 268 280 . 120 300 385 243 . . . . 250 Initial 106 | . 13 83 . . . . 106 . . . . 44 Average 105 | 8 98 165 . 16 96 115 153 . . . . 118 Maximum Alert Level 1 | . 1 1 . . 1 1 1 . . . . 1 Low Security (%) 79 | 100 80 61 . 100 85 79 53 . . . . 82 Level 1 20 | . 19 38 . . 14 20 46 . . . . 17 Level 2 . | . . . . . . . . . . . . . Level 3 . | . . . . . . . . . . . . . Level 4 . | . . . . . . . . . . . . . Level 5 . | . . . . . . . . . . . . . High Security . | . . . . . . . . . . . . . Max Security . | . . . . . . . . . . . . . Squads Dispatched 22 | . 5 . . . 4 3 6 . . . . 4 Investigation 11 | . 4 . . . 3 1 2 . . . . 1 Extermination 2 | . . . . . . . . . . . . 2 Reinforcement 4 | . 1 . . . 1 . 1 . . . . 1 Assault 2 | . . . . . . 2 . . . . . . Garrison 3 | . . . . . . . 3 . . . . . Intercept . | . . . . . . . . . . . . . Searches Triggered . | . . . . . . . . . . . . . Data Miner Redirects 1 | . . . . . . . . . . . . 1 Construction Impeded . | . . . . . . . . . . . . . Haulers Reinforced . | . . . . . . . . . . . . . Active Scanning Responses . | . . . . . . . . . . . . . Cargo Convoy Interrupts 1 | . . . . . . . . . . . . 1 Stealth | -11 -10 -10 -10 -9 -8 -8 -7 -7 -7 -7 -6 -6 --------- Run | Scr Mat Min Exi Min Mat Sto Fac Low Low Dat Pro Fac Distress Signals 11 | . 3 . . . 4 3 . . . . . 1 Communications Jammed . | . . . . . . . . . . . . . Distress Signals . | . . . . . . . . . . . . . Times Spotted 175 | . 37 6 . 3 38 31 3 4 1 . 10 42 Peak Tracking Total 13 | . 4 3 . 3 6 9 1 3 1 . 5 13 Tactical Retreats 8 | . . . . . 4 1 . . . . . 3 Traps | -11 -10 -10 -10 -9 -8 -8 -7 -7 -7 -7 -6 -6 ------- Run | Scr Mat Min Exi Min Mat Sto Fac Low Low Dat Pro Fac Traps Triggered 6 | . 4 . . . 1 1 . . . . . . Indirectly . | . . . . . . . . . . . . . Trap Hack Attempts . | . . . . . . . . . . . . . Triggered . | . . . . . . . . . . . . . Disarmed . | . . . . . . . . . . . . . Reprogrammed . | . . . . . . . . . . . . . Reused . | . . . . . . . . . . . . . Traps Extracted . | . . . . . . . . . . . . . Installed . | . . . . . . . . . . . . . Triggered 2 | . . . . . . . . 1 1 . . . Machines | -11 -10 -10 -10 -9 -8 -8 -7 -7 -7 -7 -6 -6 ---------- Run | Scr Mat Min Exi Min Mat Sto Fac Low Low Dat Pro Fac Machines Disabled 5 | . . . . . 1 3 . . . . . 1 Max in Single Turn 1 | . . . . . 1 1 . . . . . 1 Machines Sabotaged . | . . . . . . . . . . . . . Overloaded Fab Kills . | . . . . . . . . . . . . . Hacking | -11 -10 -10 -10 -9 -8 -8 -7 -7 -7 -7 -6 -6 --------- Run | Scr Mat Min Exi Min Mat Sto Fac Low Low Dat Pro Fac Machines Accessed 31 | . 10 . 1 . 8 4 3 . . 3 . 2 Terminals 19 | . 7 . . . 7 3 1 . . . . 1 Fabricators 2 | . . . . . . . 1 . . . . 1 Repair Stations 3 | . 1 . . . . 1 1 . . . . . Recycling Units 3 | . 2 . . . 1 . . . . . . . Scanalyzers . | . . . . . . . . . . . . . Garrison Access . | . . . . . . . . . . . . . Total Hacks 110 | . 22 . 1 . 20 19 9 . . 27 . 12 Successful 66 | . 9 . 1 . 6 11 6 . . 27 . 6 Failed 43 | . 12 . . . 14 8 3 . . . . 6 Catastrophic 7 | . 3 . . . 1 2 1 . . . . . Database Lockouts 1 | . 1 . . . . . . . . . . . Manual 40 | . 15 . . . 10 7 1 . . . . 7 Terminals 63 | . 18 . . . 19 14 3 . . . . 9 Fabricators 6 | . . . . . . . 3 . . . . 3 Repair Stations 10 | . 2 . . . . 5 3 . . . . . Recycling Units 3 | . 2 . . . 1 . . . . . . . Scanalyzers . | . . . . . . . . . . . . . Garrison Access . | . . . . . . . . . . . . . Terminal Hacks 50 | . 6 . 1 . 5 6 2 . . 27 . 3 Record 7 | . . . 1 . . . . . . 6 . . Part Schematic 13 | . 2 . . . . . . . . 11 . . Robot Schematic 7 | . . . . . . . . . . 7 . . Robot Analysis 1 | . 1 . . . . . . . . . . . Prototype ID Bank 5 | . 2 . . . . . . . . 3 . . Branch Access Points 2 | . . . . . . . 1 . . . . 1 Terminal Index 1 | . . . . . . . 1 . . . . . Alert Level 4 | . 1 . . . 2 1 . . . . . . Unreport Threat 4 | . . . . . 2 1 . . . . . 1 Locate Traps 2 | . . . . . . 1 . . . . . 1 Hauler Manifests 2 | . . . . . 1 1 . . . . . . Zone Layout 2 | . . . . . . 2 . . . . . . Fabricator Hacks 3 | . . . . . . . 2 . . . . 1 Network Status 2 | . . . . . . . 1 . . . . 1 Load Schematic 1 | . . . . . . . 1 . . . . . Repair Station Hacks 6 | . 1 . . . . 4 1 . . . . . Scan Component 4 | . 1 . . . . 2 1 . . . . . Repair 2 | . . . . . . 2 . . . . . . Recycling Unit Hacks . | . . . . . . . . . . . . . Scanalyzer . | . . . . . . . . . . . . . Garrison Access Hacks . | . . . . . . . . . . . . . Unauthorized Hacks 7 | . 2 . . . 1 1 1 . . . . 2 Terminals 1 | . . . . . . 1 . . . . . . Botnet 1 | . . . . . . 1 . . . . . . Fabricators 3 | . . . . . . . 1 . . . . 2 Haulers 1 | . . . . . . . . . . . . 1 Recompile 2 | . . . . . . . 1 . . . . 1 Repair Stations . | . . . . . . . . . . . . . Recycling Units 3 | . 2 . . . 1 . . . . . . . Tunnel 3 | . 2 . . . 1 . . . . . . . Scanalyzers . | . . . . . . . . . . . . . Garrison Access . | . . . . . . . . . . . . . Data Cores Recovered . | . . . . . . . . . . . . . Used . | . . . . . . . . . . . . . Hacking Detections 23 | . 8 . . . 7 4 3 . . . . 1 Full Trace Events 8 | . 1 . . . 5 1 1 . . . . . Feedback Events 1 | . . . . . 1 . . . . . . . Hackware Fried 1 | . . . . . 1 . . . . . . . Feedback Blocked . | . . . . . . . . . . . . . Robot Schematics Acquired 7 | . . . . . . . . . . 7 . . Robots Built . | . . . . . . . . . . . . . Authchips . | . . . . . . . . . . . . . Time . | . . . . . . . . . . . . . Total Robot Build Rating . | . . . . . . . . . . . . . Part Schematics Acquired 13 | . 2 . . . . . . . . 11 . . Parts Built . | . . . . . . . . . . . . . Authchips . | . . . . . . . . . . . . . Time . | . . . . . . . . . . . . . Total Part Build Rating . | . . . . . . . . . . . . . Parts Repaired 2 | . . . . . . 2 . . . . . . Time 52 | . . . . . . 52 . . . . . . Parts Recycled . | . . . . . . . . . . . . . Recycled Matter . | . . . . . . . . . . . . . Retrieved Matter . | . . . . . . . . . . . . . Retrieved Components . | . . . . . . . . . . . . . Parts Scanalyzed . | . . . . . . . . . . . . . Part Schematics Acquired . | . . . . . . . . . . . . . Parts Damaged . | . . . . . . . . . . . . . Bothacking | -11 -10 -10 -10 -9 -8 -8 -7 -7 -7 -7 -6 -6 ------------ Run | Scr Mat Min Exi Min Mat Sto Fac Low Low Dat Pro Fac Used RIF Installer . | . . . . . . . . . . . . . Robots Hacked . | . . . . . . . . . . . . . Non-combat . | . . . . . . . . . . . . . Combat . | . . . . . . . . . . . . . Robot Hacks Applied . | . . . . . . . . . . . . . Relay Couplers Released . | . . . . . . . . . . . . . Fabnet Peak Effective % . | . . . . . . . . . . . . . Robots Rewired . | . . . . . . . . . . . . . Allies Hacked . | . . . . . . . . . . . . . Hacks Repelled . | . . . . . . . . . . . . . Allies | -11 -10 -10 -10 -9 -8 -8 -7 -7 -7 -7 -6 -6 -------- Run | Scr Mat Min Exi Min Mat Sto Fac Low Low Dat Pro Fac Total Allies 3 | . . . . . . 2 . . . . 1 . Largest Group 2 | . . . . . . 2 2 1 . . 1 . Highest-Rated Group 96 | . . . . . . 62 62 31 . . 96 . Highest-Rated Ally 96 | . . . . . . 31 31 31 . . 96 . Total Orders . | . . . . . . . . . . . . . Ally Attacks 61 | . . . . . . 7 31 4 . . 19 . Total Damage 1148 | . . . . . . 104 423 62 . . 559 . Kills 13 | . . . . . . 3 4 2 . . 4 . Allies Corrupted . | . . . . . . . . . . . . . Allies Melted . | . . . . . . . . . . . . . Intel | -11 -10 -10 -10 -9 -8 -8 -7 -7 -7 -7 -6 -6 ------- Run | Scr Mat Min Exi Min Mat Sto Fac Low Low Dat Pro Fac Robot Analysis Total 1 | . 1 . . . . . . . . . . . Derelict Logs Recovered 6 | . . . . 2 . . . 2 2 . . . Drone Launches . | . . . . . . . . . . . . . Drone Recoveries . | . . . . . . . . . . . . . Exploration | -11 -10 -10 -10 -9 -8 -8 -7 -7 -7 -7 -6 -6 ------------- Run | Scr Mat Min Exi Min Mat Sto Fac Low Low Dat Pro Fac Turns Passed 10979 | 234 2228 779 429 437 1635 1113 559 685 883 180 1016 801 Spaces Moved 4305 | 126 716 402 244 236 704 340 196 273 361 75 361 271 Core 13 | 11 . . . . . . . . . . . 2 Treads 2439 | 115 396 . . . 190 340 196 273 361 75 361 132 Legs . | . . . . . . . . . . . . . Wheels 1853 | . 320 402 244 236 514 . . . . . . 137 Hover . | . . . . . . . . . . . . . Flight . | . . . . . . . . . . . . . Fastest Speed 50 | 50 160 175 175 175 130 240 240 240 240 240 240 130 Average Speed 213 | 150 260 175 175 175 168 240 240 240 240 240 240 205 Slowest Speed 1600 | 160 480 175 175 175 240 240 240 240 240 240 242 1600 Overloaded Moves . | . . . . . . . . . . . . . Propulsion Burnouts . | . . . . . . . . . . . . . Robots Hopped . | . . . . . . . . . . . . . Cave-ins Triggered . | . . . . . . . . . . . . . Exploration Rate (%) 49 | 6 97 76 68 42 47 55 8 44 59 68 56 12 Regions Visited 12 Branch Regions 8 Pre-discovered Areas 5 | . 2 . . 1 1 . . . . 1 . . Known Exits Taken 5 | . . . . . . . 1 1 1 1 1 . Unknown Exits Taken 7 | 1 1 1 1 1 1 1 . . . . . . Scrap Searched 5 | . . 1 . . . . . 1 . . 3 . Spaces Dug 18 | . . . . 9 . 2 . . . . . 7 Terrain Destroyed 174 | . 5 28 . 26 9 47 . 15 . . 37 7 Melee 7 | . . . . . . . . . . . . 7 Projectile 25 | . . . . . 9 16 . . . . . . AOE 142 | . 5 28 . 26 . 31 . 15 . . 37 . Terrain Rammed . | . . . . . . . . . . . . . Walls Destroyed . | . . . . . . . . . . . . . Machines Disabled . | . . . . . . . . . . . . . Actions | -11 -10 -10 -10 -9 -8 -8 -7 -7 -7 -7 -6 -6 --------- Run | Scr Mat Min Exi Min Mat Sto Fac Low Low Dat Pro Fac Total 5388 | 150 898 454 247 250 965 541 280 289 369 75 461 409 Wait 261 | . 46 7 . 3 48 70 63 1 . . 14 9 Move 4293 | 125 715 401 243 235 703 339 195 272 360 74 360 271 Hop . | . . . . . . . . . . . . . Pick Up 101 | 6 14 10 . . 28 16 6 1 . . 11 9 Fast Attach 44 | 7 5 2 . . 10 8 1 . . . 3 8 Attach 60 | . 6 2 2 3 16 3 2 . . . 6 20 Detach 23 | . 2 1 2 2 7 2 1 . . . 2 4 Swap 69 | . 4 2 . . 10 11 3 4 3 1 14 17 Drop 65 | . 3 4 . . 21 21 3 1 . . 12 . Fire 435 | 10 99 24 . 7 119 70 4 10 6 . 39 47 Melee 18 | . . . . . . . . . . . . 18 Ram 4 | . 2 1 . . 1 . . . . . . . Kick . | . . . . . . . . . . . . . Crush 13 | 2 2 . . . 2 1 . . . . . 6 Escape Stasis . | . . . . . . . . . . . . . Rewire 2 | . . . . . . . 2 . . . . . Trap . | . . . . . . . . . . . . . Miscellaneous . | . . . . . . . . . . . . . Route ------- -11/Scrapyard -10/Materials (discovered 4 exits: [*Mat x3] / [*Min]) -10/Mines (discovered 3 exits: [*Mat x2] / *Exi) -10/Exiles -9/Mines (discovered 2 exits: *Mat x2) -8/Materials (discovered 2 exits: *Fac / *Sto) -8/Storage (discovered 2 exits: *Fac / [Rec]) -7/Factory (discovered 2 exits: *Low x2) -7/Lower Caves (discovered 2 exits: *Low / *Zio) -7/Lower Caves -7/Data Miner -6/Proximity Caves -6/Factory (discovered 2 exits: *Low x2) History --------- Turn | Location | Event 7 | -11/Scrapyard | Discovered new exit (range 15) 235 | -11/Scrapyard | Entered Materials 312 | -10/Materials | Build established: Mutant 598 | -10/Materials | Discovered new exit (range 15) 1237 | -10/Materials | Central database locked down 1879 | -10/Materials | Discovered new exit (range 16) 2089 | -10/Materials | Core integrity fell below 50% 2284 | -10/Materials | Discovered new exit (range 6) 2410 | -10/Materials | Discovered new exit (range 8) 2463 | -10/Materials | Entered Mines 2493 | -10/Mines | Found a damaged Exp. Sensor Array with a note attached 2497 | -10/Mines | Found Prototype Device 2497 | -10/Mines | Identified Exp. Sensor Array 2651 | -10/Mines | Discovered new exit (range 12) 2751 | -10/Mines | Discovered new exit (range 7) 2786 | -10/Mines | Joined a pair of Derelicts in attacking an 0b10 outpost 2851 | -10/Mines | Deemed a non-threat by the Exiles lab entrance 2851 | -10/Mines | Discovered new exit (range 5) 3242 | -10/Mines | Entered Exiles 3242 | -10/Exiles | Found Exiles lab abandoned 3655 | -10/Exiles | Discovered new exit (range 10) 3671 | -10/Exiles | Entered Mines 3748 | -9/Mines | Discovered new exit (range 6) 3873 | -9/Mines | Learned location of Zion (-6) 3890 | -9/Mines | Discovered new exit (range 9) 3895 | -9/Mines | Learned Materials stockpile data 4035 | -9/Mines | Core integrity fell below 20% 4108 | -9/Mines | Entered Materials 4108 | -8/Materials | Evolved 4 slots: Propulsion x2, Utility x2 4154 | -8/Materials | Discovered new exit (range 16) 4411 | -8/Materials | Build established: Scavenger-Mutant 4626 | -8/Materials | Lost 3 parts (1p1n1u) 4726 | -8/Materials | Hacking Suite fried by hacking feedback 4987 | -8/Materials | Lost 5 parts (1n2u2w) 5265 | -8/Materials | Discovered new exit (range 13) 5743 | -8/Materials | Entered Storage 6250 | -8/Storage | Discovered new exit (range 13) 6576 | -8/Storage | Repaired Lgt. Treads 6603 | -8/Storage | Repaired Lgt. Treads 6746 | -8/Storage | Met a pair of Derelict thieves 6817 | -8/Storage | Discovered new exit (range 11) 6856 | -8/Storage | Entered Factory 6856 | -7/Factory | Accompanied by 2 allies 6856 | -7/Factory | Evolved 2 slots: Utility x2 6971 | -7/Factory | Garrison activated, responded to threat 6983 | -7/Factory | Identified exit to Lower Caves 7151 | -7/Factory | Build established: Scavenger-Skirmisher 7415 | -7/Factory | Entered Lower Caves 7415 | -7/Lower Caves | Accompanied by 1 ally 7480 | -7/Lower Caves | A Derelict revealed a hidden shortcut to a safe place 7498 | -7/Lower Caves | Identified exit to Zion 7713 | -7/Lower Caves | Build established: Scavenger-Mutant 8039 | -7/Lower Caves | Learned Factory emergency access door positions 8061 | -7/Lower Caves | Discovered new exit (range 10) 8096 | -7/Lower Caves | Identified exit to Lower Caves 8100 | -7/Lower Caves | Entered another Lower Caves area 8180 | -7/Lower Caves | Encountered a Warlord checkpoint 8216 | -7/Lower Caves | Build established: Scavenger-Skirmisher 8301 | -7/Lower Caves | Learned Factory garrison access intel 8938 | -7/Lower Caves | Learned Factory garrison access intel 8967 | -7/Lower Caves | Discovered new exit (range 10) 8981 | -7/Lower Caves | Identified exit to Data Miner 8983 | -7/Lower Caves | Entered Data Miner 8983 | -7/Data Miner | Discovered new exit (range 6) 9029 | -7/Data Miner | Met Data Miner 9072 | -7/Data Miner | Learned location of Section 7 (-2) 9072 | -7/Data Miner | Acquired the access code to Warlord's prototype stash 9106 | -7/Data Miner | Received God Mode back door access code from Data Miner 9159 | -7/Data Miner | Identified exit to Proximity Caves 9163 | -7/Data Miner | Entered Proximity Caves 9197 | -6/Proximity Caves | Escorted by Enhanced Grunt 9198 | -6/Proximity Caves | Attacked by a faux Warlord 9428 | -6/Proximity Caves | Found Prototype Device 9428 | -6/Proximity Caves | Identified Exp. Thermal Shield 9721 | -6/Proximity Caves | Build established: Scavenger-Mutant 10097 | -6/Proximity Caves | Discovered new exit (range 10) 10127 | -6/Proximity Caves | Identified exit to Factory 10179 | -6/Proximity Caves | Entered Factory 10179 | -6/Factory | Evolved 2 slots: Power x1, Utility x1 10181 | -6/Factory | Loaded intel: 4 garrison access locations 10674 | -6/Factory | Destroyed 12 combat bots 10679 | -6/Factory | Lost 11 parts (3n5u3w) 10884 | -6/Factory | Identified exit to Lower Caves 10891 | -6/Factory | Cargo convoy interrupted 10912 | -6/Factory | Incoming assault squad redirected 10944 | -6/Factory | Core integrity fell below 50% 10961 | -6/Factory | System corruption reached 10% 10968 | -6/Factory | Core integrity fell below 20% 10980 | -6/Factory | Destroyed by X-62 Marksman with Pulse Rifle Last Messages --------------- 10966_ U-05 Engineer builds a Wall. 10966_ Hrd. Medium Armor Plating destroyed. 10966_ R-10 Processor collects Welding Torch. 10967_ U-05 Engineer lays Concrete. 10967_ Slug penetrates Wall. 10967_ Chainsword destroyed. 10969_ U-05 Engineer lays Concrete. 10970_ Slug penetrates Wall. 10971_ Penetrated by Slug. 10972_ Slug penetrates Wall. 10973_ Slug penetrates X-62 Marksman. 10974_ Penetrated by Slug. 10975_ Wall collapses. 10975_ Slug penetrates Wall. 10976_ Wall collapses. 10976_ P-60 Hacker resets X-72 Disruptor, system corruption cleaned. 10977_ U-05 Engineer lays Concrete. 10978_ Penetrated by Slug. 10978_ U-05 Engineer builds a Wall. 10980_ Penetrated by Slug. Map ----- +----------------------------------------------------+ | ??????## ##??#######?????????????????????????????? | | ""?? ###!### ?????????????????????????????? | | ""?? ###%### ????????????????????????????????? | | ???? # !!* # ???????????+??????????????????????? | | """" # # ???????????????????????????????????? | | """" + T " ????????????????????????????????????? | | """" # # ????????????????????????????????????? | | """" # !# ????????????????????????????????????? | | ? ##" ## ?????????????T??????????????? | | ?######%" ###########????????????????????????????? | | " / ##????????????????????????????? | | # [ ##????????????????????????????? | | # ##????????????????????????????? | | ########### ##????????????????????????????? | | ##### ##????????????????????????????? | | """""????## ##????????????????????????????? | | """""????## # ????????????????????????????? | | """??????## # #+#???##????????????????????? | | ?????????## u# # #??? ????????????????????? | | ?????????######### ##?? ?????????????????????? | | ?????????### ! %!!#? ?????????????????????? | | ???????????# !! h #? #?????????????????????? | | ??????????## ! x #? #?????????????????????? | | ??????+ / % ih ##p##????????????????????? | | ???????????# x]x ; ######???????????????? | | ???????????## #;x@> ????????? | | ????????????### # #### ## ###???????????????? | | ????????????????## #??#####????????????????????? | | ?????????????????+ #???????????????????????????? | | ?????????????????# #????????????"""""""""??????? | | ?????????????????# #???????????????????????????? | | ?????????????????# ??"""""?????"""""""""??????? | | ?????????????????# ??""T""????????????????????? | | ?????????????????+ ?????????????????????+?????? | | ?????????????????# """"?""""????????????????????? | | ?????????????????# """"?""""????????????????????? | | ?????????????????# """"?""""????????????????????? | | ?????????????????? ???????????????"""???????????? | | ?????????????????? ?????????????"""""???????????? | | ??????????????????##?????????????"""""???????????? | | ?????????????????????????????????????????????????? | | ?????????????????????????????????????????????????? | | ?????????????????????????????????????????????????? | | ?????????????????????""?""??????????"Y"??????????? | | ?????????????????????""G""??????????"""??????????? | | ?????????????????????????????????????????????????? | | ?????????????????????????????????????????????????? | | ?????????????????????????????????????????????????? | | ?????????????????????????????????????????????????? | | ?????????????????????????????????????????????????? | +----------------------------------------------------+ Best States ------------- Heat Dissipation 41 Energy Generation 25 Energy Capacity 470 Matter Stores 300 Matter Capacity 300 Sight Range 16 Robot Scan Range 20 Terrain Scan Density 10 Armor Coverage 600 Propulsion Shielding 33 Weapon Cycling 15 Evasion (%) 40 Targeting Accuracy 6 Core Analysis 6 Recoil Reduction 4 Offensive Hacking 30 Authchip Count 2 Item Schematics ----------------- Huge Storage Unit | -10/Materials | Hacked Cargo Storage Unit | -10/Materials | Hacked Combat Drone Bay | -7/Data Miner | Free Lgt. Regenerative Plating | -7/Data Miner | Free Biomechanical Wings | -7/Data Miner | Free Gravity Neutralizer | -7/Data Miner | Free Antimatter Cannon | -7/Data Miner | Free Cmb. Gravmag System | -7/Data Miner | Free Imp. Launcher Guidance Computer | -7/Data Miner | Free Adv. Plasma Cannon | -7/Data Miner | Free Adv. Sensor Array | -7/Data Miner | Free Mic. Fission Core | -7/Data Miner | Free Imp. Kinecellerator | -7/Data Miner | Free Robot Schematics ------------------ A-15 Conveyor | -7/Data Miner | Free W-25 Informer | -7/Data Miner | Free G-50 Soldier | -7/Data Miner | Free M-14 Sweeper | -7/Data Miner | Free X-67 Chaingunner | -7/Data Miner | Free R-10 Processor | -7/Data Miner | Free Y-54 Guardian | -7/Data Miner | Free Fabricated ------------ Nothing Alien Tech Used ----------------- None Achievements -------------- None Challenges ------------ None Game ------ Seed HeartNeutronSpoofer Manual? 0 Play Time 01:26:06 Cumulative 579.5 hours Start 2023.01.07 @ 14:57:25 End 2023.01.07 @ 16:37:54 Sessions 1 Manual Loads 0 Difficulty Rogue Special Mode None Game No. 542 Rogue 327 Adventurer 112 Explorer 103 Win Type - Total 40 Types 26/0/8/2/0/0/3/1/0 Lore% 88 Gallery% 93 Achievement% 81 Wizard Run 0 Options --------- ASCII 0 Keyboard 1 Movement Vi Keybinds 1 Fullscreen 2 Font 36/TerminusBold Map View 76x50 Tactical HUD 1 Map Filters NONE Filters NONE Steam 1 RUN: f75d596a-1da6-4b59-9ef7-7e43ce65dfc9